fUSD/lending_fUSD_20260112
["ID","MTS","AMOUNT","RATE_DAILY","PERIOD"]
[401413277,1768192254460,-151.0,0.00017999,2]
[401413278,1768192254470,-151.0,0.00017999,2]
[401413279,1768192254480,-199.646617,0.00017999,2]
[401413280,1768192254489,-473.824202,0.00017999,2]
[401413281,1768192254499,-151.0,0.00017999,2]
[401413282,1768192254509,-151.0,0.00017999,2]
[401413283,1768192254519,-151.0,0.00017999,2]
[401413284,1768192254528,-151.0,0.00017999,2]
[401413285,1768192254538,-473.824202,0.00017999,2]
[401413286,1768192254547,-199.367871,0.00017999,2]
[401413287,1768192254558,-421.950315,0.00017999,2]
[401413288,1768192254569,-151.0,0.00017999,2]
[401413289,1768192254581,-151.0,0.00017999,2]
[401413290,1768192254590,-151.0,0.00017999,2]
[401413291,1768192254599,-151.0,0.00017999,2]
[401413292,1768192254608,-473.824202,0.00017999,2]
[401413293,1768192254618,-151.0,0.00017999,2]
[401413294,1768192254627,-421.950315,0.00017999,2]
[401413295,1768192254636,-473.824202,0.00017999,2]
[401413296,1768192254647,-421.950315,0.00017999,2]
[401413297,1768192254658,-421.950315,0.00017999,2]
[401413298,1768192254668,-151.0,0.00017999,2]
[401413299,1768192254678,-151.0,0.00017999,2]
[401413300,1768192254688,-151.0,0.00017999,2]
[401413301,1768192254699,-151.0,0.00017999,2]
[401413302,1768192254709,-151.0,0.00017999,2]
[401413303,1768192254720,-151.0,0.00017999,2]
[401413304,1768192254729,-151.0,0.00017999,2]
[401413305,1768192254738,-151.0,0.00017999,2]
[401413306,1768192254748,-151.0,0.00017999,2]
[401413307,1768192254757,-350.223287,0.00017999,2]
[401413308,1768192254767,-350.223287,0.00017999,2]
[401413309,1768192254777,-350.223287,0.00017999,2]
[401413310,1768192254789,-350.223287,0.00017999,2]
[401413311,1768192254799,-151.0,0.00017999,2]
[401413312,1768192254809,-151.0,0.00017999,2]
[401413313,1768192254819,-151.0,0.00017999,2]
[401413314,1768192254830,-151.0,0.00017999,2]
[401413315,1768192254840,-151.0,0.00017999,2]
[401413316,1768192254849,-172.73046,0.00017999,2]
[401413317,1768192254861,-154.393056,0.00017999,2]
[401413318,1768192254871,-874.374949,0.00017999,2]
[401413319,1768192254880,-874.374949,0.00017999,2]
[401413320,1768192254889,-151.932842,0.00017999,2]
[401413321,1768192254899,-874.374949,0.00017999,2]
[401413322,1768192254908,-152.18826,0.00017999,2]
[401413323,1768192254918,-874.374949,0.00017999,2]
[401413324,1768192254927,-151.0,0.00017999,2]
[401413325,1768192254937,-151.0,0.00017999,2]
[401413326,1768192254946,-151.0,0.00017999,2]
[401413327,1768192254956,-151.0,0.00017999,2]
[401413328,1768192254965,-151.0,0.00017999,2]
[401413329,1768192254975,-438.167901,0.00017999,2]
[401413330,1768192254984,-438.167901,0.00017999,2]
[401413331,1768192254994,-438.167901,0.00017999,2]
[401413332,1768192255005,-438.167901,0.00017999,2]
[401413333,1768192255015,-151.0,0.00017999,2]
[401413334,1768192255024,-151.0,0.00017999,2]
[401413335,1768192255034,-151.0,0.00017999,2]
[401413336,1768192255044,-151.0,0.00017999,2]
[401413337,1768192255055,-151.0,0.00017999,2]
[401413338,1768192255065,-487.3351,0.00017999,2]
[401413339,1768192255075,-487.3351,0.00017999,2]
[401413340,1768192255085,-487.3351,0.00017999,2]
[401413341,1768192255094,-487.3351,0.00017999,2]
[401413342,1768192255104,-228.029963,0.00017999,2]
[401413343,1768192255114,-228.029963,0.00017999,2]
[401413344,1768192255123,-228.029963,0.00017999,2]
[401413345,1768192255133,-228.029963,0.00017999,2]
[401413346,1768192255142,-506.307155,0.00017999,2]
[401413347,1768192255152,-506.307155,0.00017999,2]
[401413348,1768192255163,-506.307155,0.00017999,2]
[401413349,1768192255174,-506.307155,0.00017999,2]
[401413350,1768192255184,-14302.37222132,0.00017999,2]
[401413351,1768192255194,-522.479568,0.00017999,2]
[401413352,1768192255204,-300.0,0.00017999,2]
[401413353,1768192255213,-666.0,0.00017999,2]
[401413354,1768192255224,-151.0,0.00017999,2]
[401413355,1768192255233,-151.0,0.00017999,2]
[401413356,1768192255243,-151.0,0.00017999,2]
[401413357,1768192255253,-151.0,0.00017999,2]
[401413358,1768192255264,-151.0,0.00017999,2]
[401413359,1768192255274,-949.908812,0.00017999,2]
[401413360,1768192255283,-329.021696,0.00017999,2]
[401413361,1768192255292,-258.065145,0.00017999,2]
[401413362,1768192255302,-949.908812,0.00017999,2]
[401413363,1768192255312,-329.021696,0.00017999,2]
[401413364,1768192255321,-258.065145,0.00017999,2]
[401413365,1768192255330,-970.748749,0.00017999,2]
[401413366,1768192255340,-949.908812,0.00017999,2]
[401413367,1768192255350,-329.021696,0.00017999,2]
[401413368,1768192255362,-258.065145,0.00017999,2]
[401413369,1768192255371,-151.0,0.00017999,2]
[401413370,1768192255380,-970.748749,0.00017999,2]
[401413371,1768192255390,-949.908812,0.00017999,2]
[401413372,1768192255400,-329.021696,0.00017999,2]
[401413373,1768192255410,-258.065145,0.00017999,2]
[401413374,1768192255420,-151.0,0.00017999,2]
[401413375,1768192255429,-970.748749,0.00017999,2]
[401413376,1768192255439,-970.748749,0.00017999,2]
[401413377,1768192255448,-1159.429831,0.00017999,2]
[401413378,1768192255458,-151.0,0.00017999,2]
[401413379,1768192255467,-1159.429831,0.00017999,2]
[401413380,1768192255477,-151.0,0.00017999,2]
[401413381,1768192255486,-1159.429831,0.00017999,2]
[401413382,1768192255495,-282.84319,0.00017999,2]
[401413383,1768192255506,-1159.429831,0.00017999,2]
[401413384,1768192255515,-202.183274,0.00017999,2]
[401413385,1768192255524,-1619.066186,0.00017999,2]
[401413386,1768192255534,-1647.039821,0.00017999,2]
[401413387,1768192255543,-202.183274,0.00017999,2]
[401413388,1768192255553,-1619.066186,0.00017999,2]
[401413389,1768192255563,-151.0,0.00017999,2]
[401413390,1768192255572,-1647.039821,0.00017999,2]
[401413391,1768192255582,-202.183274,0.00017999,2]
[401413392,1768192255592,-1619.066186,0.00017999,2]
[401413393,1768192255603,-1647.039821,0.00017999,2]
[401413394,1768192255613,-202.183274,0.00017999,2]
[401413395,1768192255623,-1619.066186,0.00017999,2]
[401413396,1768192255633,-1647.039821,0.00017999,2]
[401413397,1768192255643,-1046.89,0.00017999,2]
[401413398,1768192255653,-1046.89,0.00017999,2]
[401413399,1768192255663,-1046.89,0.00017999,2]
[401413400,1768192255673,-1046.89,0.00017999,2]
[401413401,1768192255683,-1046.92509882,0.00017999,2]
[401413402,1768192255693,-151.0,0.00017999,2]
[401413403,1768192255703,-151.0,0.00017999,2]
[401413404,1768192255713,-300.0,0.00017999,2]
[401413405,1768192255723,-151.0,0.00017999,2]
[401413406,1768192255732,-151.0,0.00017999,2]
[401413407,1768192255742,-151.0,0.00017999,2]
[401413408,1768192255752,-151.0,0.00017999,2]
[401413409,1768192255763,-151.0,0.00017999,2]
[401413410,1768192255773,-151.0,0.00017999,2]
[401413411,1768192255787,-151.0,0.00017999,2]
[401413412,1768192255796,-187.206296,0.00017999,2]
[401413413,1768192255805,-406.875021,0.00017999,2]
[401413414,1768192255814,-151.0,0.00017999,2]
[401413415,1768192255824,-151.0,0.00017999,2]
[401413416,1768192255835,-406.875021,0.00017999,2]
[401413417,1768192255844,-151.0,0.00017999,2]
[401413418,1768192255854,-406.875021,0.00017999,2]
[401413419,1768192255864,-151.0,0.00017999,2]
[401413420,1768192255873,-162.966682,0.00017999,2]
[401413421,1768192255883,-406.875021,0.00017999,2]
[401413422,1768192255892,-1767.548746,0.00017999,2]
[401413423,1768192255902,-501.106021,0.00017999,2]
[401413424,1768192255912,-1767.548746,0.00017999,2]
[401413425,1768192255922,-151.0,0.00017999,2]
[401413426,1768192255932,-402.021243,0.00017999,2]
[401413427,1768192255942,-501.106021,0.00017999,2]
[401413428,1768192255954,-151.0,0.00017999,2]
[401413429,1768192255965,-1767.548746,0.00017999,2]
[401413430,1768192255978,-257.783842,0.00017999,2]
[401413431,1768192255988,-402.021243,0.00017999,2]
[401413432,1768192255997,-501.106021,0.00017999,2]
[401413433,1768192256007,-151.0,0.00017999,2]
[401413434,1768192256017,-297.170586,0.00017999,2]
[401413435,1768192256026,-1767.548746,0.00017999,2]
[401413436,1768192256036,-402.021243,0.00017999,2]
[401413437,1768192256046,-501.106021,0.00017999,2]
[401413438,1768192256055,-151.0,0.00017999,2]
[401413439,1768192256065,-297.170586,0.00017999,2]
[401413440,1768192256074,-151.0,0.00017999,2]
[401413441,1768192256084,-402.021243,0.00017999,2]
[401413442,1768192256094,-878.078272,0.00017999,2]
[401413443,1768192256105,-151.0,0.00017999,2]
[401413444,1768192256114,-297.170586,0.00017999,2]
[401413445,1768192256124,-151.0,0.00017999,2]
[401413446,1768192256133,-464.411102,0.00017999,2]
[401413447,1768192256143,-878.078272,0.00017999,2]
[401413448,1768192256152,-297.170586,0.00017999,2]
[401413449,1768192256163,-203.639295,0.00017999,2]
[401413450,1768192256172,-464.411102,0.00017999,2]
[401413451,1768192256182,-878.078272,0.00017999,2]
[401413452,1768192256191,-151.0,0.00017999,2]
[401413453,1768192256200,-464.411102,0.00017999,2]
[401413454,1768192256211,-214.643691,0.00017999,2]
[401413455,1768192256220,-878.078272,0.00017999,2]
[401413456,1768192256230,-182.853172,0.00017999,2]
[401413457,1768192256241,-464.411102,0.00017999,2]
[401413458,1768192256252,-214.643691,0.00017999,2]
[401413459,1768192256262,-214.643691,0.00017999,2]
[401413460,1768192256272,-1680.772685,0.00017999,2]
[401413461,1768192256281,-208.281146,0.00017999,2]
[401413462,1768192256291,-157.637598,0.00017999,2]
[401413463,1768192256300,-214.643691,0.00017999,2]
[401413464,1768192256309,-1680.772685,0.00017999,2]
[401413465,1768192256319,-208.281146,0.00017999,2]
[401413466,1768192256329,-157.637598,0.00017999,2]
[401413467,1768192256342,-2639.362255,0.00017999,2]
[401413468,1768192256353,-1680.772685,0.00017999,2]
[401413469,1768192256364,-208.281146,0.00017999,2]
[401413470,1768192256376,-157.637598,0.00017999,2]
[401413471,1768192256389,-2639.362255,0.00017999,2]
[401413472,1768192256399,-1680.772685,0.00017999,2]
[401413473,1768192256411,-897.996354,0.00017999,2]
[401413474,1768192256421,-208.281146,0.00017999,2]
[401413475,1768192256431,-151.0,0.00017999,2]
[401413476,1768192256442,-2139.417501,0.00017999,2]
[401413477,1768192256453,-157.637598,0.00017999,2]
[401413478,1768192256464,-2639.362255,0.00017999,2]
[401413479,1768192256475,-897.996354,0.00017999,2]
[401413480,1768192256486,-151.0,0.00017999,2]
[401413481,1768192256495,-2139.417501,0.00017999,2]
[401413482,1768192256505,-2639.362255,0.00017999,2]
[401413483,1768192256515,-897.996354,0.00017999,2]
[401413484,1768192256524,-274.564263,0.00017999,2]
[401413485,1768192256536,-2139.417501,0.00017999,2]
[401413486,1768192256546,-151.0,0.00017999,2]
[401413487,1768192256557,-897.996354,0.00017999,2]
[401413488,1768192256567,-2139.417501,0.00017999,2]
[401413489,1768192256576,-2277.167351,0.00017999,2]
[401413490,1768192256586,-151.0,0.00017999,2]
[401413491,1768192256596,-2277.167351,0.00017999,2]
[401413492,1768192256606,-2277.167351,0.00017999,2]
[401413493,1768192256616,-2277.167351,0.00017999,2]
[401413494,1768192256625,-265.669936,0.00017999,2]
[401413495,1768192256635,-151.0,0.00017999,2]
[401413496,1768192256644,-151.0,0.00017999,2]
[401413497,1768192256655,-273.411244,0.00017999,2]
[401413498,1768192256667,-151.0,0.00017999,2]
[401413499,1768192256677,-291.883143,0.00017999,2]
[401413500,1768192256687,-151.0,0.00017999,2]
[401413501,1768192256698,-291.883143,0.00017999,2]
[401413502,1768192256711,-151.0,0.00017999,2]
[401413503,1768192256721,-291.883143,0.00017999,2]
[401413504,1768192256732,-151.0,0.00017999,2]
[401413505,1768192256743,-291.883143,0.00017999,2]
[401413506,1768192256753,-1888.793769,0.00017999,2]
[401413507,1768192256763,-1888.793769,0.00017999,2]
[401413508,1768192256774,-1888.793769,0.00017999,2]
[401413509,1768192256788,-1888.793769,0.00017999,2]
[401413510,1768192256799,-247.183117,0.00017999,2]
[401413511,1768192256809,-154.38953807,0.00018,2]
[401413512,1768192256819,-155.99258279,0.00018,2]
[401413513,1768192256831,-156.71525667,0.00018,2]
[401413514,1768192256843,-350.68764993,0.00018,2]
[401413515,1768192256853,-155.07098725,0.00018,2]
[401413516,1768192256863,-151.66154832,0.00018,2]
[401413517,1768192256874,-155.70825827,0.00018,2]
[401413518,1768192256884,-151.45444701,0.00018,2]
[401413519,1768192257032,-154.70586823,0.00018,2]
[401413520,1768192257043,-152.34445976,0.00018,2]
[401413521,1768192257052,-1947261.941247,0.00018,2]
[401413522,1768192257713,-964.59999993,0.00018,2]
[401413523,1768192258651,-1.7e-07,0.00018,2]
[401413524,1768192259224,-151.0,0.00015322,2]
[401413525,1768192259234,-171.53,0.00017178,2]
[401413526,1768192259243,-65.03302185,0.00017178,2]
[401413527,1768192259475,-0.02322732,0.00015322,2]
[401413528,1768192259525,500.0,0.00012794,2]
[401413529,1768192259542,-150.97677268,0.00015322,2]
[401413530,1768192259552,-165.49356138,0.00017041,2]
[401413531,1768192259593,230.81695285,0.00012794,2]
[401413532,1768192259636,163.2149018,0.00012794,2]
[401413533,1768192259723,-496.45643862,0.00017041,2]
[401413534,1768192259733,-491.77697815,0.00017178,2]
[401413535,1768192259743,-467.15,0.00017178,2]
[401413536,1768192259752,-915.9165081,0.00017323,2]
[401413537,1768192259764,-362.84828034,0.00017323,2]
[401413538,1768192259775,-784.21763588,0.00017323,2]
[401413539,1768192259798,-3637.25570814,0.00017323,2]
[401413540,1768192259808,-727.39816523,0.00017323,2]
[401413541,1768192259827,-4315.13087285,0.00017323,2]
[401413542,1768192259838,-1141.6,0.00017323,2]
[401413543,1768192259850,-4479.96549275,0.00017323,2]
[401413544,1768192259860,-1405.0,0.0001745,2]
[401413545,1768192259870,-210.611627,0.00017595,2]
[401413546,1768192259880,-279.689475,0.00017595,2]
[401413547,1768192259890,-151.0,0.00017595,2]
[401413548,1768192259900,-210.611627,0.00017595,2]
[401413549,1768192259910,-279.689475,0.00017595,2]
[401413550,1768192259920,-180.467358,0.00017595,2]
[401413551,1768192259929,-210.611627,0.00017595,2]
[401413552,1768192259941,-279.689475,0.00017595,2]
[401413553,1768192259952,-180.467358,0.00017595,2]
[401413554,1768192259963,-31885.23458418,0.00018,2]
[401413555,1768192259982,-1840.66,0.000179,2]
[401413556,1768192260407,294.98285028,0.00012794,2]
[401413557,1768192260528,570.83572157,0.00012794,2]
[401413558,1768192260571,570.83572157,0.00012794,2]
[401413559,1768192260619,570.83572157,0.00012794,2]
[401413560,1768192260659,570.83572157,0.00012794,2]
[401413561,1768192260701,570.83572157,0.00012794,2]
[401413562,1768192260750,570.83572157,0.00012794,2]
[401413563,1768192260793,570.83572157,0.00012794,2]
[401413564,1768192260839,570.83572157,0.00012794,2]
[401413565,1768192260881,570.83572157,0.00012794,2]
[401413566,1768192260928,570.83572157,0.00012794,2]
[401413567,1768192260969,570.83572157,0.00012794,2]
[401413568,1768192261027,327.21199261,0.00012794,2]
[401413569,1768192261057,243.62372896,0.00012794,2]
[401413570,1768192261101,570.83572157,0.00012794,2]
[401413571,1768192261152,570.83572157,0.00012794,2]
[401413572,1768192261199,570.83572157,0.00012794,2]
[401413573,1768192261243,570.83572157,0.00012794,2]
[401413574,1768192261289,4.83574256,0.00012794,2]
[401413575,1768192261321,565.99997901,0.00012794,2]
[401413576,1768192261365,570.83572157,0.00012794,2]
[401413577,1768192261409,570.83572157,0.00012794,2]
[401413578,1768192261459,570.83572157,0.00012794,2]
[401413579,1768192261514,570.83572157,0.00012794,2]
[401413580,1768192261561,570.83572157,0.00012794,2]
[401413581,1768192261602,570.83572157,0.00012794,2]
[401413582,1768192261646,570.83572157,0.00012794,2]
[401413583,1768192261691,570.83572157,0.00012794,2]
[401413584,1768192261736,570.83572157,0.00012794,2]
[401413585,1768192261781,570.83572157,0.00012794,2]
[401413586,1768192261831,570.83572157,0.00012794,2]
[401413587,1768192261873,570.83572157,0.00012794,2]
[401413588,1768192261918,570.83572157,0.00012794,2]
[401413589,1768192261960,570.83572157,0.00012794,2]
[401413590,1768192262005,570.83572157,0.00012794,2]
[401413591,1768192262049,570.83572157,0.00012794,2]
[401413592,1768192262089,300.63847587,0.00012794,2]
[401413593,1768192262116,270.1972457,0.00012794,2]
[401413594,1768192262159,570.83572157,0.00012794,2]
[401413595,1768192262210,570.83572157,0.00012794,2]
[401413596,1768192262607,570.83572157,0.00012794,2]
[401413597,1768192262653,570.83572157,0.00012794,2]
[401413598,1768192262700,570.83572157,0.00012794,2]
[401413599,1768192262744,570.83572157,0.00012794,2]
[401413600,1768192262791,570.83572157,0.00012794,2]
[401413601,1768192262838,570.83572157,0.00012794,2]
[401413602,1768192262881,570.83572157,0.00012794,2]
[401413603,1768192262926,570.83572157,0.00012794,2]
[401413604,1768192262967,570.83572157,0.00012794,2]
[401413605,1768192263009,570.83572157,0.00012794,2]
[401413606,1768192263058,570.83572157,0.00012794,2]
[401413607,1768192264240,500.0,0.00012694,2]
[401413608,1768192264286,500.0,0.00012694,2]
[401413609,1768192264333,500.0,0.00012694,2]
[401413610,1768192264375,500.0,0.00012694,2]
[401413611,1768192264415,308.94837389,0.00012694,2]
[401413612,1768192264442,191.05162611,0.00012694,2]
[401413613,1768192264485,500.0,0.00012694,2]
[401413614,1768192264533,500.0,0.00012694,2]
[401413615,1768192264573,500.0,0.00012694,2]
[401413616,1768192264619,500.0,0.00012694,2]
[401413617,1768192264664,500.0,0.00012694,2]
[401413618,1768192264706,500.0,0.00012694,2]
[401413619,1768192264749,500.0,0.00012694,2]
[401413620,1768192264800,500.0,0.00012694,2]
[401413621,1768192264845,500.0,0.00012694,2]
[401413622,1768192264895,500.0,0.00012694,2]
[401413623,1768192264936,500.0,0.00012694,2]
[401413624,1768192264978,500.0,0.00012694,2]
[401413625,1768192265021,500.0,0.00012694,2]
[401413626,1768192265062,500.0,0.00012694,2]
[401413627,1768192265104,500.0,0.00012694,2]
[401413628,1768192265154,500.0,0.00012694,2]
[401413629,1768192265201,500.0,0.00012694,2]
[401413630,1768192265246,500.0,0.00012694,2]
[401413631,1768192265317,500.0,0.00012694,2]
[401413632,1768192265385,308.95837389,0.00012694,2]
[401413633,1768192265422,191.04162611,0.00012694,2]
[401413634,1768192265486,500.0,0.00012694,2]
[401413635,1768192265548,398.8123332,0.00012694,2]
[401413636,1768192265611,500.0,0.00012694,2]
[401413637,1768192265666,500.0,0.00012694,2]
[401413638,1768192265721,500.0,0.00012694,2]
[401413639,1768192316659,10000.01,0.00012695,2]
[401413640,1768192316689,10000.01,0.00012695,2]
[401413641,1768192362529,300.0,0.000129,4]
[401413642,1768192393743,1600.0,0.000129,4]
[401413643,1768192483482,1110.78417922,0.00012694,3]
[401413644,1768192840624,-251.0,0.00012369,2]
[401413645,1768192840656,-195.0,0.00012432,2]
[401413646,1768192840690,-1951.82791508,0.00012463,2]
[401413647,1768192856526,-453.387964,0.00012307,2]
[401413648,1768192856554,-930.154072,0.00012398,2]
[401413649,1768192874768,-2767.084072,0.00012398,2]
[401413650,1768192959065,-4465.841856,0.00012398,2]
[401413651,1768192959095,-250.0,0.00012431,2]
[401413652,1768192988343,-307.87907859,0.00012479,2]
[401413653,1768192988375,-300.0,0.00012511,2]
[401413654,1768192988405,-300.0,0.00012511,2]
[401413655,1768192988435,-1200.0,0.00012512,2]
[401413656,1768192988464,-195.0,0.00012513,2]
[401413657,1768192988491,-195.0,0.00012578,2]
[401413658,1768192988519,-500.0,0.00012595,2]
[401413659,1768192988548,-300.0,0.00012644,2]
[401413660,1768192988918,-300.0,0.00012644,2]
[401413661,1768192988948,-150.0,0.00012645,2]
[401413662,1768192988981,-300.0,0.00012645,2]
[401413663,1768192989010,-266.58356176,0.00012646,2]
[401413664,1768192989051,-500.0,0.00012646,2]
[401413666,1768193064555,172.8,9.95e-05,2]
[401413667,1768193117976,-172.8,0.00011194,2]
[401413668,1768193118006,-193.0,0.00012313,2]
[401413669,1768193118039,-195.0,0.00012313,2]
[401413670,1768193118070,-351.25467068,0.00012313,2]
[401413671,1768193118099,-2971.5464888,0.00012411,2]
[401413672,1768193134126,-2232.80768104,0.00012411,2]
[401413673,1768193134156,-172.8,0.00012438,2]
[401413674,1768193134186,-300.0,0.00012528,2]
[401413675,1768193134216,-800.19280494,0.00012617,2]
[401413676,1768193134246,-300.0,0.00012643,2]
[401413677,1768193134276,-300.0,0.00012644,2]
[401413678,1768193134311,-300.0,0.00012644,2]
[401413679,1768193135568,-1200.0,0.00012644,2]
[401413680,1768193135596,-150.0,0.00012644,2]
[401413681,1768193135629,-1200.0,0.00012645,2]
[401413682,1768193135664,-500.0,0.00012645,2]
[401413683,1768193135698,-500.0,0.00012645,2]
[401413684,1768193135731,-500.0,0.00012645,2]
[401413685,1768193135764,-500.0,0.00012645,2]
[401413686,1768193135796,-400.01,0.00012645,2]
[401413687,1768193149341,-99.99,0.00012645,2]
[401413688,1768193149376,-500.0,0.00012645,2]
[401413689,1768193149411,-500.0,0.00012645,2]
[401413690,1768193149445,-287.60966309,0.00012645,2]
[401413691,1768193149477,-500.0,0.00012645,2]
[401413692,1768193149514,-500.0,0.00012645,2]
[401413693,1768193149548,-500.0,0.00012645,2]
[401413694,1768193149583,-500.0,0.00012645,2]
[401413695,1768193149617,-500.0,0.00012645,2]
[401413696,1768193149654,-500.0,0.00012645,2]
[401413697,1768193149690,-500.0,0.00012645,2]
[401413698,1768193149862,-500.0,0.00012645,2]
[401413699,1768193149900,-500.0,0.00012645,2]
[401413700,1768193149937,-500.0,0.00012645,2]
[401413701,1768193149973,-500.0,0.00012645,2]
[401413702,1768193150009,-500.0,0.00012645,2]
[401413703,1768193150048,-500.0,0.00012645,2]
[401413704,1768193150088,-500.0,0.00012645,2]
[401413705,1768193150126,-500.0,0.00012645,2]
[401413706,1768193150163,-500.0,0.00012645,2]
[401413707,1768193150200,-500.0,0.00012645,2]
[401413708,1768193156144,-269.93788749,0.00012645,2]
[401413709,1768193163977,-300.0,0.00012644,2]
[401413710,1768193164016,-230.06211251,0.00012645,2]
[401413711,1768193164059,-500.0,0.00012645,2]
[401413712,1768193164099,-500.0,0.00012645,2]
[401413713,1768193164138,-500.0,0.00012645,2]
[401413714,1768193164174,-500.0,0.00012645,2]
[401413715,1768193164210,-500.0,0.00012645,2]
[401413716,1768193164245,-500.0,0.00012645,2]
[401413717,1768193164280,-509.68802944,0.00012645,2]
[401413718,1768193164316,-500.0,0.00012645,2]
[401413719,1768193164351,-459.67902944,0.00012645,2]
[401413720,1768193195111,-499.99,0.00012645,2]
[401413721,1768193195146,-241.333,0.00012646,2]
[401413722,1768193195177,-3986.63,0.00012646,2]
[401413723,1768193195208,-239.97404994,0.00012648,2]
[401413724,1768193208244,-64.15590012,0.00012648,2]
[401413725,1768193208274,-162.32142233,0.00012648,2]
[401413726,1768193208304,-196.8155897,0.00012648,2]
[401413727,1768193208333,-196.8155897,0.00012648,2]
[401413728,1768193225585,-204.043744,0.00012548,2]
[401413729,1768193225615,-204.043744,0.00012595,2]
[401413730,1768193225646,-533.46186996,0.00012617,2]
[401413731,1768193227127,-393.32918086,0.00012595,2]
[401413732,1768193234694,1900.0,0.000129,4]
[401413733,1768193236717,3900.0,0.000139,5]
[401413734,1768193240100,-2694.3415157,0.00012595,2]
[401413735,1768193250084,-522.72086975,0.00012595,2]
[401413736,1768193253080,-14376.46993369,0.00012595,2]
[401413737,1768193253102,-229.34246668,0.00012622,2]
[401413738,1768193253124,-195.0,0.00012622,2]
[401413739,1768193253147,-6681.92931521,0.00012648,2]
[401413740,1768193253381,-2539.07769251,0.00012648,2]
[401413741,1768193270872,-720.59778806,0.00012648,2]
[401413742,1768193341646,-10000.01,0.00012617,2]
[401413743,1768193365195,-355.64124664,0.00012517,2]
[401413744,1768193365560,-5034.10904936,0.00012588,2]
[401413745,1768193366082,-16914.11498,0.00012588,2]
[401413746,1768193367082,-11565.4553,0.00012588,2]
[401413747,1768193370084,-44422.32426843,0.00012588,2]
[401413748,1768193387983,-10000.01,0.00012588,2]
[401413749,1768193388314,-10000.01,0.00012588,2]
[401413750,1768193388470,-10000.01,0.00012588,2]
[401413751,1768193388695,-10000.01,0.00012588,2]
[401413752,1768193388904,-10000.01,0.00012588,2]
[401413753,1768193389125,-10000.01,0.00012588,2]
[401413754,1768193389331,-10000.01,0.00012588,2]
[401413755,1768193389602,-10000.01,0.00012588,2]
[401413756,1768193389869,-10000.01,0.00012588,2]
[401413757,1768193425530,-300.0,0.00012587,2]
[401413758,1768193425560,-300.0,0.00012587,2]
[401413759,1768193425590,-1200.0,0.00012587,2]
[401413760,1768193425621,-253.0,0.00012587,2]
[401413762,1768193431913,-164851.75023738,0.00012588,2]
[401413763,1768193431924,-304.28914531,0.00012588,2]
[401413765,1768193431935,-854.31250193,0.00012588,2]
[401413766,1768193431946,-653.94812092,0.00012588,2]
[401413767,1768193431958,-2542.81382997,0.00012588,2]
[401413768,1768193431973,-508.0,0.00012588,2]
[401413769,1768193431986,-2124.18576796,0.00012588,2]
[401413770,1768193432058,-3761.89596264,0.00012588,2]
[401413771,1768193432070,-999.0,0.00012588,2]
[401413772,1768193432081,-2379.46437723,0.00012588,2]
[401413773,1768193432132,-6585.19458496,0.00012588,2]
[401413780,1768193433237,233.95747698,0.00012587,2]
[401413781,1768193433276,500.0,0.00012587,2]
[401413782,1768193433316,253.41469094,0.00012587,2]
[401413783,1768193433508,470.08875943,0.00012587,2]
[401413784,1768193433547,500.0,0.00012587,2]
[401413785,1768193433671,151.81704838,0.00012587,2]